[Event "Djerba Festival Open-A 2024"]
[Site "Djerba"]
[Date "2024.02.20"]
[Round "4.2"]
[White "Defromont, Benjamin"]
[Black "Eden, James"]
[Result "1/2-1/2"]
[ECO "C67"]
[WhiteElo "2423"]
[BlackElo "2319"]
[Annotator "TA"]
[PlyCount "95"]
[EventDate "2024.02.18"]
[EventType "swiss"]
[EventCountry "TUN"]
[SourceTitle "playchess.com"]
[Source "ChessBase"]
[SourceQuality "1"]
[TimeControl "5400+30"]

{[%evp 15,95,23,21,6,16,10,19,13,34,28,41,23,18,27,126,124,124,124,123,120,124,64,56,57,72,68,72,18,12,4,0,0,0,0,0,0,0,0,0,0,0,0,0,0,2,0,0,0,0,0,0,0,0,0,0,0,0,0,0,0,0,0,0,0,0,0,0,0,0,0,0,0,0,0,0,0,0,0,0,0,0,0]} 1. e4 {[%emt 0:00:04]} e5 {[%emt 0:00:15]} 2. Nf3 {[%emt 0:00:08]} Nc6 {[%emt 0:00:06]} 3. Bb5 {[%emt 0:00:04]} Nf6 {[%emt 0:00:48]} 4. O-O {[%emt 0:00:11][%cal Bh1f1,Bf1e1,Be1e5][%mdl 32]} Nxe4 {[%emt 0:00:12]} 5. Re1 {[%emt 0:00:11]} Nd6 {[%emt 0:00:14]} 6. Nxe5 {[%emt 0:00:16]} Nxe5 {[%emt 0:01:27]} 7. Rxe5+ {[%emt 0:00:09]} Be7 {[%emt 0:00:07]} 8. Bf1 {[%emt 0:00:13]} O-O {[%emt 0:00:20]} 9. Nc3 {[%emt 0:00:56]} Bf6 {[%emt 0:06:00]} 10. Re1 {[%emt 0:00:54]} Re8 {[%emt 0:05:09]} 11. Nd5 {[%emt 0:01:15]} Bg5 {[%emt 0:00:57]} 12. d4 {[%emt 0:03:50]} Bxc1 {[%emt 0:04:01]} 13. Qxc1 {[%emt 0:01:01]} Rxe1 {[%emt 0:08:17]} 14. Qxe1 {[%emt 0:02:34] Bd3 would now be deadly.} Ne8 {[%emt 0:00:29]} (14... b6 $1 $11) 15. Qe4 $16 {[%emt 0:03:00] Black is weak on the light squares} d6 {[%emt 0:02:52]} 16. Re1 {[%emt 0:03:26]} Be6 {[%emt 0:05:48]} 17. Nf4 {[%emt 0:00:36][%csl LRb7,LRe6]} Bd7 {[%emt 0:00:23]} 18. Bd3 {[%emt 0:05:53]} (18. Qxb7 $16 Rb8 19. Qf3 (19. Qxa7 Rxb2 20. Qa3 Rb8 $16)) 18... Nf6 $14 {[%emt 0:04:16]} 19. Qxb7 {[%emt 0:00:21]} Rb8 {[%emt 0:00:46]} 20. Qxa7 {[%emt 0:00:16] aiming for Bc4.} Rxb2 {[%emt 0:02:22]} 21. a4 {[%emt 0:05:52]} (21. Ne2 $16) 21... Rb8 $1 $11 {[%emt 0:01:12] The position is equal.} 22. Qa5 {[%emt 0:11:12]} Ra8 {[%emt 0:04:24]} 23. Qg5 {[%emt 0:00:12]} h6 {[%emt 0:03:03]} 24. Qh4 {[%emt 0:01:25]} Bxa4 {[%emt 0:08:06]} 25. Nh5 {[%emt 0:01:28] [#] Black must now prevent Nxf6+.} Nxh5 {[%emt 0:01:52]} 26. Qxh5 {[%emt 0:00:06]} Qg5 {[%emt 0:03:48]} 27. Qf3 {[%emt 0:02:02]} Re8 {[%emt 0:01:11]} 28. Rxe8+ {[%emt 0:01:00]} Bxe8 {[%emt 0:00:09][%mdl 4096] Endgame. KQB-KQB} 29. g3 {[%emt 0:00:37]} Kf8 {[%emt 0:02:25]} 30. h4 {[%emt 0:00:39]} Qc1+ {[%emt 0:01:09]} 31. Kg2 {[%emt 0:00:33]} Qb2 {[%emt 0:00:35]} 32. Qd5 {[%emt 0:03:56]} Qb6 {[%emt 0:01:52] [#] ...Bc6 is the strong threat.} 33. Be4 {[%emt 0:00:11]} Bd7 {[%emt 0:02:37]} 34. c3 {[%emt 0:03:18]} c5 {[%emt 0:02:29]} 35. Bf3 {[%emt 0:02:25]} cxd4 {[%emt 0:00:31]} 36. cxd4 {[%emt 0:00:07]} Be6 {[%emt 0:00:37]} 37. Qa8+ {[%emt 0:01:18]} Ke7 {[%emt 0:00:09]} 38. Qe4 {[%emt 0:00:18] Hoping for d5.} Kf8 {[%emt 0:01:26]} 39. Qf4 {[%emt 0:02:12]} Qd8 {[%emt 0:02:31]} 40. Bc6 {[%emt 0:05:06]} Qe7 {[%emt 0:03:54]} 41. Kh2 {[%emt 0:09:56]} g5 {[%emt 0:01:08]} 42. Qe3 {[%emt 0:03:40]} Qf6 {[%emt 0:01:48]} 43. hxg5 {[%emt 0:00:39]} hxg5 {[%emt 0:00:21]} 44. Kg1 {[%emt 0:01:10] Active counter play!} Kg7 {[%emt 0:00:19]} 45. Be4 {[%emt 0:00:34]} Bf5 {[%emt 0:00:50]} 46. Qf3 {[%emt 0:00:48]} Bxe4 {[%emt 0:01:18]} 47. Qxe4 {[%emt 0:00:07]} Qe6 {[%emt 0:00:19]} 48. Qf3 {[%emt 0:02:09] Weighted Error Value: White=0.05 (flawless) /Black=0.05 (flawless) .  Mistake:       	White=2     	Black=1      OK:         	White=10    	Black=22     Best:        	---       	Black=5      Strong:       	---       	Black=1} 1/2-1/2

[Event "Djerba Festival Open-A 2024"]
[Site "Djerba"]
[Date "2024.02.20"]
[Round "4.3"]
[White "Domenech, Vianney"]
[Black "Djabri, Massinas"]
[Result "1/2-1/2"]
[ECO "D00"]
[WhiteElo "2254"]
[BlackElo "2238"]
[Annotator "TA"]
[PlyCount "88"]
[EventDate "2024.02.18"]
[EventType "swiss"]
[EventCountry "TUN"]
[SourceTitle "playchess.com"]
[Source "ChessBase"]
[SourceQuality "1"]
[TimeControl "5400+30"]

{[%evp 9,88,9,11,20,15,29,47,0,41,27,37,0,41,48,37,4,103,51,95,26,84,85,114,103,182,168,193,150,170,163,189,156,204,171,193,176,303,303,304,299,272,106,98,100,106,93,97,97,170,135,214,66,93,0,28,27,35,22,28,0,0,0,0,0,0,0,0,0,0,0,0,0,0,0,0,0,0,0,0,0,0]} 1. d4 {[%emt 0:00:03]} Nf6 {[%emt 0:06:43]} 2. Bf4 {[%emt 0:00:20]} d5 {[%emt 0:01:06]} 3. e3 {[%emt 0:00:14]} c5 {[%emt 0:01:07]} 4. Nc3 {[%emt 0:00:16]} e6 {[%emt 0:00:26]} 5. Nb5 {[%emt 0:00:14]} Na6 {[%emt 0:00:11]} 6. c3 {[%emt 0:00:12]} Be7 {[%emt 0:00:18]} 7. a4 {[%emt 0:00:44]} c4 {[%emt 0:01:11]} 8. h4 {[%emt 0:02:16]} (8. b3 $14) 8... Ne4 {[%emt 0:02:49][%cal Oc8d7]} 9. Nf3 {[%emt 0:06:46]} O-O {[%emt 0:04:50]} 10. Ng5 {[%emt 0:13:09]} f5 {[%emt 0:11:22]} 11. Nxe4 {[%emt 0:15:37]} fxe4 {[%emt 0:00:37]} 12. h5 {[%emt 0:01:41]} (12. Be2 $5) 12... Bg5 {[%emt 0:04:08]} (12... Bd7 $11) 13. Bd6 {[%emt 0:04:16]} (13. Bg3 $16) 13... Rf7 {[%emt 0:03:44]} 14. Be5 {[%emt 0:05:05]} (14. Bg3 $1 $16) 14... Bf6 {[%emt 0:10:20]} (14... Nb8 $11 {remains equal.}) 15. Bg3 $16 {[%emt 0:00:13] White is more active.} Bd7 {[%emt 0:00:44]} 16. Be2 {[%emt 0:02:39]} Qb6 {[%emt 0:01:55]} (16... Bxb5 $16 {was worth a try.} 17. axb5 Nc7) 17. b3 $18 {[%emt 0:04:55]} cxb3 {[%emt 0:09:57]} 18. Qxb3 {[%emt 0:00:09]} Bc6 {[%emt 0:04:08]} 19. O-O {[%emt 0:04:07]} Re7 {[%emt 0:07:27]} 20. Rfb1 {[%emt 0:05:09]} Kh8 {[%emt 0:04:01]} (20... Qd8 $16 {might work better.} 21. c4 Rd7) 21. Qa3 {[%emt 0:04:05][%cal Ob5c7] Nc7! is the strong threat.} Qd8 {[%emt 0:01:14]} 22. Nd6 {[%emt 0:03:26]} Rd7 {[%emt 0:01:29]} (22... Qf8 $142 23. Bxa6 bxa6) 23. Bxa6 $1 {[%emt 0:02:52]} bxa6 {[%emt 0:00:05]} 24. Qc5 {[%emt 0:00:13] Against Qa5} Rc7 {[%emt 0:00:15] [#]} 25. Nf7+ $2 {[%emt 0:03:08]} Rxf7 $16 {[%emt 0:00:10]} 26. Qxc6 {[%emt 0:00:03]} Qc8 {[%emt 0:01:22]} 27. Qxc8+ {[%emt 0:02:36]} Rxc8 {[%emt 0:00:06]} 28. Rb3 {[%emt 0:00:06]} h6 {[%emt 0:05:10]} (28... Kg8 $16) 29. Rab1 $18 {[%emt 0:00:04]} Kh7 {[%emt 0:00:05] [#]} (29... Kg8 $16 30. Rb8 Rd8 31. Rxd8+ Bxd8) 30. Bd6 {[%emt 0:07:13]} ({Only move:} 30. Rb7 $1 $18 {[%cal Rb7f7]} Rxb7 31. Rxb7) 30... Rc4 {[%emt 0:01:02]} 31. Ra1 {[%emt 0:07:03]} ({White should play} 31. Rb7 $16 Rxb7 32. Rxb7) 31... Rd7 {[%emt 0:01:09]} 32. Bf4 {[%emt 0:00:54]} Bd8 {[%emt 0:03:06]} 33. Be5 {[%emt 0:00:54]} a5 {[%emt 0:02:10]} 34. Rab1 {[%emt 0:00:32]} Bb6 $1 {[%emt 0:00:08] The position is equal.} 35. Ra3 {[%emt 0:01:17]} Rf7 {[%emt 0:03:09]} 36. g4 {[%emt 0:04:02] Dodges Rf5} g6 {[%emt 0:00:14]} 37. Kg2 {[%emt 0:00:31]} gxh5 {[%emt 0:00:08]} 38. gxh5 {[%emt 0:00:03]} Rf5 {[%emt 0:00:41]} 39. Rh1 $1 {[%emt 0:00:04]} Rc8 {[%emt 0:00:13]} 40. Kf1 {[%emt 0:00:52]} Rcf8 {[%emt 0:01:37]} 41. Ra2 {[%emt 0:00:36][%cal Oc3c4]} Rc8 {[%emt 0:03:13]} 42. Ra3 {[%emt 0:00:24]} Rcf8 {[%emt 0:00:06]} (42... Bc7 43. Bxc7 Rxc7 44. Rb3) 43. Ra2 {[%emt 0:00:05][%cal Oc3c4]} Rc8 {[%emt 0:01:52]} 44. Ra3 {[%emt 0:00:07]} Rcf8 {[%emt 0:00:07] White really could win this.   Weighted Error Value: White=0.22 (precise) /Black=0.25 (precise) .  Missed win:     	White=1     	---        Mistake:       	White=5     	Black=7      Inaccurate:     	White=3     	Black=6      OK:         	White=18    	Black=8      Best:        	White=1     	---        Strong:       	White=2     	Black=1} (44... Bc7 45. Bxc7 Rxc7 46. Rb3) 1/2-1/2

[Event "Djerba Festival Open-A 2024"]
[Site "Djerba"]
[Date "2024.02.20"]
[Round "4.4"]
[White "Abbes, Ali"]
[Black "Egorov, Konstantin"]
[Result "1-0"]
[ECO "B23"]
[WhiteElo "2218"]
[BlackElo "2118"]
[Annotator "RC"]
[PlyCount "81"]
[EventDate "2024.02.18"]
[EventType "swiss"]
[EventCountry "TUN"]
[SourceTitle "playchess.com"]
[Source "ChessBase"]
[SourceQuality "1"]
[TimeControl "5400+30"]

1. e4 {[%emt 0:05:31]} c5 {[%emt 0:00:06]} 2. Nc3 {[%emt 0:00:12]} a6 {[%emt 0:00:04]} 3. g3 {[%emt 0:00:43]} b5 {[%emt 0:00:13]} 4. Bg2 {[%emt 0:00:09]} Bb7 {[%emt 0:00:03]} 5. Qe2 {[%emt 0:00:29]} e6 {[%emt 0:01:28]} 6. Nf3 {[%emt 0:00:15]} d6 {[%emt 0:01:37]} 7. O-O {[%emt 0:00:11]} Nf6 {[%emt 0:00:48]} 8. d3 {[%emt 0:00:09]} Be7 {[%emt 0:00:56]} 9. Nh4 {[%emt 0:05:18]} Nc6 {[%emt 0:12:44]} 10. f4 {[%emt 0:00:31]} Nd4 {[%emt 0:01:51]} 11. Qd1 {[%emt 0:00:28]} Nd7 {[%emt 0:01:51]} 12. Nf3 {[%emt 0:03:17]} O-O {[%emt 0:10:41]} 13. Nxd4 {[%emt 0:02:04]} cxd4 {[%emt 0:00:30]} 14. Ne2 {[%emt 0:00:30]} e5 {[%emt 0:00:00]} 15. c3 {[%emt 0:04:00]} dxc3 {[%emt 0:00:28]} 16. Nxc3 {[%emt 0:00:30]} Qb6+ {[%emt 0:00:30]} 17. Kh1 {[%emt 0:00:30]} Rac8 {[%emt 0:00:30]} 18. Bh3 {[%emt 0:00:30]} Rc7 {[%emt 0:00:30]} 19. Qe2 {[%emt 0:00:30]} Qa7 {[%emt 0:14:10]} 20. Be3 {[%emt 0:17:23]} Qa8 {[%emt 0:00:03]} 21. Rac1 {[%emt 0:57:50]} Kh8 {[%emt 0:13:04]} 22. Bg2 {[%emt 0:00:00]} Nf6 {[%emt 0:01:11]} 23. a3 {[%emt 0:00:00]} Bd8 {[%emt 0:06:48]} 24. fxe5 {[%emt 0:00:00]} dxe5 {[%emt 0:00:35]} 25. Rf5 {[%emt 0:00:00]} Re8 {[%emt 0:03:09]} 26. Bg5 {[%emt 0:00:00]} Ng8 {[%emt 0:03:28]} 27. Be3 {[%emt 0:00:00]} f6 {[%emt 0:02:20]} 28. h4 {[%emt 0:00:00]} Bc8 {[%emt 0:08:43]} 29. Rff1 {[%emt 0:00:00]} Be6 {[%emt 0:00:14]} 30. Nd5 {[%emt 0:00:00]} Rd7 {[%emt 0:04:03]} 31. Kh2 {[%emt 0:00:00]} Ne7 {[%emt 0:02:53]} 32. Nc3 {[%emt 0:00:00]} Bc7 {[%emt 0:01:05]} 33. h5 {[%emt 0:00:00]} Qd8 {[%emt 0:02:16]} 34. h6 {[%emt 0:00:00]} Ng8 {[%emt 0:03:22]} 35. Nd5 {[%emt 0:00:00]} Bxd5 {[%emt 0:00:39]} 36. exd5 {[%emt 0:00:00]} gxh6 {[%emt 0:02:03]} 37. Be4 {[%emt 0:00:00]} Rg7 {[%emt 0:00:29]} 38. Qf3 {[%emt 0:00:00]} Rf8 {[%emt 0:01:42]} 39. Bf5 {[%emt 0:00:00]} e4 {[%emt 0:00:26]} 40. dxe4 {[%emt 0:00:00]} Rxg3 {[%emt 0:01:20]} 41. Rxc7 {[%emt 0:00:00]} 1-0

[Event "Djerba Festival Open-A 2024"]
[Site "Djerba"]
[Date "2024.02.20"]
[Round "4.5"]
[White "Nassr, Lina"]
[Black "Brahami, Lamine"]
[Result "0-1"]
[ECO "D04"]
[WhiteElo "2051"]
[BlackElo "2178"]
[Annotator "RC"]
[PlyCount "56"]
[EventDate "2024.02.18"]
[EventType "swiss"]
[EventCountry "TUN"]
[SourceTitle "playchess.com"]
[Source "ChessBase"]
[SourceQuality "1"]
[TimeControl "5400+30"]

1. d4 {[%emt 0:03:14]} Nf6 {[%emt 0:00:52]} 2. Nf3 {[%emt 0:00:12]} g6 {[%emt 0:00:33]} 3. Nbd2 {[%emt 0:00:25]} d5 {[%emt 0:01:24]} 4. b3 {[%emt 0:01:39]} Bg7 {[%emt 0:00:28]} 5. Bb2 {[%emt 0:00:20]} O-O {[%emt 0:00:51]} 6. e3 {[%emt 0:00:28]} b6 {[%emt 0:01:32]} 7. Bd3 {[%emt 0:03:22]} c5 {[%emt 0:01:27]} 8. O-O {[%emt 0:02:53]} Nc6 {[%emt 0:01:32]} 9. a3 {[%emt 0:03:30]} Qc7 {[%emt 0:03:34]} 10. Rc1 {[%emt 0:12:58]} cxd4 {[%emt 0:05:02]} 11. exd4 {[%emt 0:03:08]} Nh5 {[%emt 0:01:58]} 12. Re1 {[%emt 0:06:29]} Nf4 {[%emt 0:03:15]} 13. Bf1 {[%emt 0:04:18]} Bg4 {[%emt 0:06:26]} 14. h3 {[%emt 0:03:32]} Bf5 {[%emt 0:02:36]} 15. Ne5 {[%emt 0:06:06]} Nxe5 {[%emt 0:02:42]} 16. dxe5 {[%emt 0:00:45]} Rfd8 {[%emt 0:00:23]} 17. Nf3 {[%emt 0:06:52]} Bd7 {[%emt 0:05:37]} 18. Kh2 {[%emt 0:04:23]} Bh6 {[%emt 0:01:43]} 19. Ra1 {[%emt 0:01:14]} Rac8 {[%emt 0:01:20]} 20. c3 {[%emt 0:03:05]} Ne6 {[%emt 0:03:04]} 21. g3 {[%emt 0:01:55]} Nc5 {[%emt 0:01:24]} 22. Nd2 {[%emt 0:07:56]} Bxd2 {[%emt 0:02:29]} 23. Qxd2 {[%emt 0:00:38]} Nxb3 {[%emt 0:00:07]} 24. Qh6 {[%emt 0:07:51]} Nxa1 {[%emt 0:00:50]} 25. e6 {[%emt 0:07:13]} Bxe6 {[%emt 0:01:02]} 26. c4 {[%emt 0:04:18]} d4 {[%emt 0:00:34]} 27. Re4 {[%emt 0:02:34]} Nb3 {[%emt 0:01:10]} 28. Rh4 {[%emt 0:00:04]} Qe5 {[%emt 0:00:29]} 0-1

[Event "Djerba Festival Open-A 2024"]
[Site "Djerba"]
[Date "2024.02.20"]
[Round "4.7"]
[White "Amdouni, Zoubaier"]
[Black "Marin, Sam"]
[Result "1-0"]
[ECO "B00"]
[WhiteElo "2209"]
[BlackElo "2014"]
[Annotator "RC"]
[PlyCount "101"]
[EventDate "2024.02.18"]
[EventType "swiss"]
[EventCountry "TUN"]
[SourceTitle "playchess.com"]
[Source "ChessBase"]
[SourceQuality "1"]
[TimeControl "5400+30"]

1. e4 {[%emt 0:04:19]} Nc6 {[%emt 0:03:01]} 2. Nc3 {[%emt 0:01:11]} Nf6 {[%emt 0:00:13]} 3. d4 {[%emt 0:09:46]} e6 {[%emt 0:00:50]} 4. e5 {[%emt 0:04:56]} Nd5 {[%emt 0:00:09]} 5. Nf3 {[%emt 0:00:05]} Bb4 {[%emt 0:00:07]} 6. Bd2 {[%emt 0:00:22]} O-O {[%emt 0:00:57]} 7. Bd3 {[%emt 0:00:07]} f5 {[%emt 0:01:56]} 8. exf6 {[%emt 0:13:09]} Qxf6 {[%emt 0:03:20]} 9. O-O {[%emt 0:16:00]} Bxc3 {[%emt 0:05:08]} 10. bxc3 {[%emt 0:01:26]} Nf4 {[%emt 0:00:17]} 11. Bxf4 {[%emt 0:02:28]} Qxf4 {[%emt 0:00:07]} 12. Re1 {[%emt 0:01:15]} d6 {[%emt 0:07:06]} 13. Re4 {[%emt 0:03:33]} Qf6 {[%emt 0:00:14]} 14. Qd2 {[%emt 0:02:14]} e5 {[%emt 0:01:04]} 15. dxe5 {[%emt 0:01:48]} dxe5 {[%emt 0:02:33]} 16. Rae1 {[%emt 0:01:20]} Bf5 {[%emt 0:01:20]} 17. R4e3 {[%emt 0:00:23]} Rae8 {[%emt 0:11:57]} 18. Bxf5 {[%emt 0:21:14]} Qxf5 {[%emt 0:00:08]} 19. Qd5+ {[%emt 0:01:16]} Kh8 {[%emt 0:00:15]} 20. Qb5 {[%emt 0:00:09]} Qxc2 {[%emt 0:13:25]} 21. Qxb7 {[%emt 0:00:33]} Rf6 {[%emt 0:02:10]} 22. Qb3 {[%emt 0:03:45]} Qf5 {[%emt 0:00:23]} 23. Qb1 {[%emt 0:01:57]} Ref8 {[%emt 0:07:22]} 24. Qxf5 {[%emt 0:01:39]} Rxf5 {[%emt 0:00:06]} 25. R1e2 {[%emt 0:00:17]} Rd8 {[%emt 0:04:10]} 26. h3 {[%emt 0:01:47]} g6 {[%emt 0:02:37]} 27. Nxe5 {[%emt 0:01:19]} Rd1+ {[%emt 0:00:17]} 28. Kh2 {[%emt 0:00:08]} Nxe5 {[%emt 0:01:30]} 29. Rxe5 {[%emt 0:00:02]} Rxe5 {[%emt 0:00:14]} 30. Rxe5 {[%emt 0:00:01]} Rd2 {[%emt 0:00:08]} 31. Re8+ {[%emt 0:02:42]} Kg7 {[%emt 0:00:10]} 32. Re7+ {[%emt 0:00:01]} Kf6 {[%emt 0:01:41]} 33. Rxc7 {[%emt 0:00:28]} Rxa2 {[%emt 0:00:11]} 34. Rxh7 {[%emt 0:00:08]} Rc2 {[%emt 0:01:02]} 35. Rxa7 {[%emt 0:00:12]} Rxc3 {[%emt 0:00:06]} 36. Ra5 {[%emt 0:00:35]} g5 {[%emt 0:00:18]} 37. f3 {[%emt 0:00:11]} Rc2 {[%emt 0:00:34]} 38. Kg3 {[%emt 0:00:08]} Rc4 {[%emt 0:00:06]} 39. Ra6+ {[%emt 0:00:48]} Kf5 {[%emt 0:00:16]} 40. Ra8 {[%emt 0:00:11]} Rb4 {[%emt 0:00:49]} 41. Rf8+ {[%emt 0:00:12]} Ke5 {[%emt 0:00:33]} 42. Re8+ {[%emt 0:00:58]} Kf5 {[%emt 0:00:19]} 43. Re4 {[%emt 0:00:16]} Rb2 {[%emt 0:03:56]} 44. h4 {[%emt 0:00:12]} gxh4+ {[%emt 0:00:16]} 45. Rxh4 {[%emt 0:00:05]} Kg5 {[%emt 0:00:20]} 46. Ra4 {[%emt 0:03:02]} Rc2 {[%emt 0:00:20]} 47. Ra5+ {[%emt 0:00:08]} Kg6 {[%emt 0:00:17]} 48. f4 {[%emt 0:00:07]} Rd2 {[%emt 0:00:13]} 49. Kf3 {[%emt 0:00:17]} Rb2 {[%emt 0:00:19]} 50. Re5 {[%emt 0:00:22]} Kf6 {[%emt 0:00:11]} 51. g4 {[%emt 0:00:07]} 1-0

[Event "Djerba Festival Open-A 2024"]
[Site "Djerba"]
[Date "2024.02.20"]
[Round "4.8"]
[White "Lorans, Sylvain"]
[Black "Jmila, Omar"]
[Result "1/2-1/2"]
[ECO "E44"]
[WhiteElo "2076"]
[BlackElo "2152"]
[Annotator "RC"]
[PlyCount "61"]
[EventDate "2024.02.18"]
[EventType "swiss"]
[EventCountry "TUN"]
[SourceTitle "playchess.com"]
[Source "ChessBase"]
[SourceQuality "1"]
[TimeControl "5400+30"]

1. d4 {[%emt 0:04:03]} Nf6 {[%emt 0:00:32]} 2. c4 {[%emt 0:00:12]} e6 {[%emt 0:00:08]} 3. Nc3 {[%emt 0:00:15]} Bb4 {[%emt 0:00:15]} 4. e3 {[%emt 0:03:34]} b6 {[%emt 0:01:58]} 5. Nge2 {[%emt 0:00:13]} Bb7 {[%emt 0:00:10]} 6. a3 {[%emt 0:00:04]} Be7 {[%emt 0:00:14]} 7. d5 {[%emt 0:01:06]} exd5 {[%emt 0:05:25]} 8. cxd5 {[%emt 0:00:14]} O-O {[%emt 0:00:07]} 9. g3 {[%emt 0:02:39]} Re8 {[%emt 0:01:27]} 10. Bg2 {[%emt 0:00:11]} c5 {[%emt 0:03:04]} 11. O-O {[%emt 0:00:24]} d6 {[%emt 0:00:07]} 12. e4 {[%emt 0:15:15]} Bf8 {[%emt 0:01:59]} 13. h3 {[%emt 0:01:42]} b5 {[%emt 0:00:15]} 14. b4 {[%emt 1:07:38]} Nbd7 15. g4 {[%emt 0:00:00]} a5 {[%emt 0:01:11]} 16. Rb1 {[%emt 0:00:00]} axb4 {[%emt 0:11:46]} 17. axb4 {[%emt 0:00:00]} Ba6 {[%emt 0:00:23]} 18. Re1 {[%emt 0:00:00]} cxb4 {[%emt 0:00:28]} 19. Rxb4 {[%emt 0:00:00]} Qa5 {[%emt 0:00:08]} 20. Qd4 {[%emt 0:00:00]} Ne5 {[%emt 0:03:27]} 21. Bg5 {[%emt 0:00:00]} Nfd7 {[%emt 0:01:35]} 22. Reb1 {[%emt 0:00:00]} Reb8 {[%emt 0:01:03]} 23. Qd1 {[%emt 0:00:00]} Nc5 {[%emt 0:00:46]} 24. Nc1 {[%emt 0:00:00]} Rb7 {[%emt 0:03:27]} 25. Bf1 {[%emt 0:00:00]} Rab8 {[%emt 0:00:15]} 26. Bd2 {[%emt 0:00:00]} Nc4 {[%emt 0:04:30]} 27. Be1 {[%emt 0:00:00]} Qd8 {[%emt 0:03:32]} 28. Nb3 {[%emt 0:00:00]} Qe8 {[%emt 0:01:12]} 29. Bxc4 {[%emt 0:00:00]} bxc4 {[%emt 0:00:08]} 30. Nxc5 {[%emt 0:00:00]} dxc5 {[%emt 0:01:06]} 31. Rxb7 {[%emt 0:00:00]} 1/2-1/2

[Event "Djerba Festival Open-A 2024"]
[Site "Djerba"]
[Date "2024.02.20"]
[Round "4.9"]
[White "Araoune, Saadi"]
[Black "Alhassadi, Yousef A."]
[Result "1/2-1/2"]
[ECO "D30"]
[WhiteElo "2077"]
[BlackElo "2011"]
[Annotator "NA RC"]
[PlyCount "26"]
[EventDate "2024.02.18"]
[EventType "swiss"]
[EventCountry "TUN"]
[SourceTitle "playchess.com"]
[Source "ChessBase"]
[SourceQuality "1"]
[TimeControl "5400+30"]

1. d4 {[%emt 0:07:06]} d5 {[%emt 0:00:05]} 2. c4 {[%emt 0:00:04]} e6 {[%emt 0:00:04]} 3. Nf3 {[%emt 0:00:21]} c5 {[%emt 0:00:06]} 4. cxd5 {[%emt 0:00:05]} exd5 {[%emt 0:00:04]} 5. g3 {[%emt 0:00:05]} Nc6 {[%emt 0:00:09]} 6. Bg2 {[%emt 0:00:06]} Nf6 {[%emt 0:00:04]} 7. O-O {[%emt 0:00:21]} Be7 {[%emt 0:00:05]} 8. dxc5 {[%emt 0:00:24]} Bxc5 {[%emt 0:00:07]} 9. a3 {[%emt 0:00:17]} Ne4 {[%emt 0:00:39]} 10. Nfd2 {[%emt 0:00:41]} f5 {[%emt 0:00:58]} 11. Nc3 {[%emt 0:01:46]} Be6 {[%emt 0:00:57]} 12. Nb3 {[%emt 0:02:32]} Bb6 {[%emt 0:01:19]} 13. Na4 {[%emt 0:01:23]} d4 {[%emt 0:06:07]} 1/2-1/2